bitfinex/quotes_BTCUSD_20241018
["timestamp","ask_amount","ask_price","bid_price","bid_amount"]
[1729268055202,0.01814845,68324.0,68323.0,0.04191202]
[1729268055442,0.03548485,68324.0,68323.0,0.04191202]
[1729268055717,0.03548485,68324.0,68323.0,0.04274302]
[1729268056210,0.04905064,68324.0,68323.0,0.04274302]
[1729268056920,0.03548485,68324.0,68323.0,0.04274302]
[1729268057658,0.21850759,68332.0,68324.0,0.2619]
[1729268057659,0.014447,68332.0,68324.0,0.2619]
[1729268057920,0.21850759,68339.0,68325.0,0.14895915]
[1729268058154,0.21218181,68339.0,68330.0,0.0763]
[1729268058396,0.20618126,68339.0,68331.0,0.16244817]
[1729268058647,0.0494531,68341.0,68331.0,0.16244817]
[1729268058648,0.02383659,68341.0,68332.0,0.0763]
[1729268058888,0.17965759,68338.0,68336.0,0.00419324]
[1729268059126,0.17965759,68338.0,68337.0,0.22975915]
[1729268059360,0.0499192,68345.0,68337.0,0.22975915]
[1729268059361,0.21850759,68347.0,68337.0,0.22975915]
[1729268060078,0.21850759,68347.0,68336.0,0.00219324]
[1729268060079,0.0775,68378.0,68345.0,0.0811]
[1729268061496,0.21850759,68364.0,68355.0,0.002]
[1729268061750,0.21850759,68364.0,68356.0,0.14895915]
[1729268062649,0.21850759,68373.0,68356.0,0.14895915]
[1729268062650,0.21850759,68373.0,68357.0,0.0758]
[1729268062875,0.21850759,68380.0,68358.0,0.14895915]
[1729268063112,0.20989859,68380.0,68369.0,0.002]
[1729268063351,0.19289859,68380.0,68370.0,0.41395915]
[1729268063563,0.19289859,68380.0,68375.0,0.002]
[1729268063777,0.19289859,68380.0,68376.0,0.14895915]
[1729268064024,0.001662,68383.0,68376.0,0.14895915]
[1729268064280,0.0753,68405.0,68382.0,0.00219161]
[1729268064501,0.21850759,68415.0,68382.0,0.00219161]
[1729268064502,0.21850759,68387.0,68383.0,0.14895915]
[1729268064749,0.22016959,68408.0,68384.0,0.0769]
[1729268064973,0.21850759,68386.0,68384.0,0.0769]
[1729268065195,0.22016959,68408.0,68382.0,0.00219161]
[1729268065651,0.22016959,68408.0,68382.0,0.02311888]
[1729268065873,0.22016959,68408.0,68382.0,0.00219161]
[1729268066345,0.21850759,68394.0,68382.0,0.00219161]
[1729268066603,0.22016959,68408.0,68383.0,0.14895915]
[1729268066862,0.21850759,68394.0,68383.0,0.14895915]
[1729268067096,0.22016959,68408.0,68383.0,0.14895915]
[1729268067339,0.21850759,68394.0,68383.0,0.14895915]
[1729268067551,0.22016959,68408.0,68386.0,0.21850759]
[1729268067760,0.21850759,68394.0,68387.0,0.14895915]
[1729268067995,0.22016959,68408.0,68387.0,0.14895915]
[1729268068240,0.001662,68394.0,68387.0,0.14895915]
[1729268071795,0.001662,68394.0,68387.0,0.16925306]
[1729268072050,0.21850759,68393.0,68387.0,0.02029391]
[1729268072282,0.001662,68394.0,68387.0,0.02029391]
[1729268072513,0.001662,68394.0,68388.0,0.36746674]
[1729268072742,0.001662,68394.0,68389.0,0.1925]
[1729268072978,0.22016959,68408.0,68390.0,0.14895915]
[1729268073265,0.22016959,68408.0,68391.0,0.0822]
[1729268073266,0.20859159,68401.0,68391.0,0.0822]
[1729268073488,0.20859159,68401.0,68392.0,0.14895915]
[1729268073714,0.22016959,68408.0,68392.0,0.14895915]
[1729268073963,0.22016959,68408.0,68398.0,0.00219154]
[1729268075829,0.001662,68408.0,68398.0,0.15115069]
[1729268076074,0.21850759,68407.0,68398.0,0.00219154]
[1729268076301,0.001662,68408.0,68398.0,0.00219154]
[1729268076302,0.001662,68408.0,68398.0,0.02244343]
[1729268076522,0.21850759,68407.0,68398.0,0.00219154]
[1729268076738,0.001662,68408.0,68398.0,0.00219154]
[1729268077228,0.001662,68408.0,68401.0,0.21850759]
[1729268077452,0.001662,68408.0,68402.0,0.00292345]
[1729268077671,0.001662,68408.0,68398.0,0.00219154]
[1729268077884,0.001662,68408.0,68398.0,0.15115069]
[1729268079111,0.22016959,68417.0,68402.0,0.21850759]
[1729268079330,0.22016959,68417.0,68403.0,0.14895915]
[1729268079331,0.21850759,68410.0,68403.0,0.14895915]
[1729268079564,0.22016959,68417.0,68403.0,0.14895915]
[1729268080469,0.22016959,68417.0,68403.0,0.19809975]
[1729268080685,0.001662,68408.0,68403.0,0.19809975]
[1729268081149,0.001662,68408.0,68403.0,0.14895915]
[1729268084336,0.001662,68408.0,68398.0,0.05977323]
[1729268084337,0.001662,68408.0,68398.0,0.02206124]
[1729268084552,0.001662,68408.0,68399.0,0.14895915]
[1729268085030,0.001662,68408.0,68405.0,0.21850759]
[1729268085249,0.001662,68417.0,68405.0,0.21850759]
[1729268085250,0.001662,68417.0,68406.0,0.22755915]
[1729268085477,0.21850759,68413.0,68406.0,0.22982525]
[1729268085709,0.001662,68417.0,68406.0,0.22982525]
[1729268086197,0.001662,68417.0,68412.0,0.00219088]
[1729268086677,0.02155195,68416.0,68412.0,0.00219088]
[1729268086906,0.01077597,68416.0,68412.0,0.00219088]
[1729268087387,0.01077948,68415.0,68412.0,0.00219088]
[1729268087616,0.01077948,68414.0,68412.0,0.00219088]
[1729268087835,0.01077948,68413.0,68412.0,0.00219088]
[1729268088527,0.02806696,68413.0,68412.0,0.00219088]
[1729268089207,0.02011461,68413.0,68412.0,0.00219088]
[1729268089893,0.01602997,68426.0,68412.0,0.16886677]
[1729268090115,0.02082169,68425.0,68413.0,0.14895915]
[1729268090337,0.00730249,68425.0,68413.0,0.14895915]
[1729268090557,0.02082962,68424.0,68413.0,0.14895915]
[1729268090775,0.01352726,68423.0,68413.0,0.14895915]
[1729268091002,0.00730236,68424.0,68413.0,0.14895915]
[1729268091238,0.02082829,68423.0,68413.0,0.14895915]
[1729268091473,0.001662,68426.0,68413.0,0.14895915]
[1729268091474,0.02082829,68422.0,68413.0,0.14895915]
[1729268091688,0.02082829,68421.0,68414.0,0.00247332]
[1729268091916,0.001662,68426.0,68414.0,0.00247332]
[1729268092135,0.02083548,68425.0,68414.0,0.00247332]
[1729268092411,0.00166,68415.0,68414.0,0.00247332]
[1729268092636,0.00166,68415.0,68414.0,0.22098091]
[1729268092853,0.00166,68415.0,68414.0,0.00247332]
[1729268093519,0.00166,68415.0,68414.0,0.00219099]
[1729268095085,0.0073026,68415.0,68414.0,0.00219099]
[1729268095317,0.01442059,68423.0,68414.0,0.00219099]
[1729268095543,0.001662,68426.0,68414.0,0.00219099]
[1729268095544,0.05694544,68422.0,68414.0,0.00219099]
[1729268095771,0.04252485,68421.0,68414.0,0.00219099]
[1729268096007,0.001662,68426.0,68414.0,0.02238755]
[1729268096008,0.01442059,68418.0,68414.0,0.02238755]
[1729268096261,0.001662,68426.0,68414.0,0.00219099]
[1729268096262,0.04252485,68417.0,68414.0,0.00219099]
[1729268096499,0.001662,68426.0,68414.0,0.00219099]
[1729268096500,0.04252485,68416.0,68414.0,0.00219099]
[1729268096727,0.001662,68426.0,68414.0,0.00219099]
[1729268096728,0.04252485,68415.0,68414.0,0.00219099]
[1729268096959,0.04252485,68415.0,68409.0,0.21850759]
[1729268097188,0.04252485,68414.0,68409.0,0.21850759]
[1729268097423,0.04252485,68413.0,68408.0,0.07027584]
[1729268097647,0.02084973,68412.0,68408.0,0.02052324]
[1729268097887,0.02084973,68411.0,68408.0,0.02052324]
[1729268098111,0.02084973,68410.0,68403.0,0.01641594]
[1729268098340,0.21850759,68423.0,68403.0,0.01641594]
[1729268098341,0.21850759,68423.0,68414.0,0.00219065]
[1729268098566,0.02168206,68422.0,68414.0,0.00219065]
[1729268098859,0.02168206,68421.0,68414.0,0.00219065]
[1729268099092,0.02168206,68420.0,68414.0,0.00219065]
[1729268099323,0.02168206,68419.0,68414.0,0.00219065]
[1729268099544,0.22672115,68426.0,68414.0,0.00219065]
[1729268099545,0.02168206,68418.0,68414.0,0.00219065]
[1729268099761,0.22672115,68426.0,68414.0,0.00219065]
[1729268099762,0.0390274,68417.0,68414.0,0.00219065]
[1729268100475,0.02168764,68425.0,68415.0,0.01641594]
[1729268100698,0.02168764,68424.0,68415.0,0.01641594]
[1729268100943,0.001662,68426.0,68416.0,0.21850759]
[1729268100944,0.02168764,68423.0,68416.0,0.21850759]
[1729268101170,0.001662,68426.0,68416.0,0.21850759]
[1729268101405,0.001662,68426.0,68415.0,0.01641594]
[1729268101406,0.03615233,68425.0,68415.0,0.01641594]
[1729268101636,0.001662,68426.0,68414.0,0.00219065]
[1729268101637,0.24020207,68424.0,68414.0,0.00219065]
[1729268101873,0.03254117,68423.0,68415.0,0.21850759]
[1729268102107,0.04699902,68422.0,68415.0,0.21850759]
[1729268102339,0.03254117,68421.0,68415.0,0.21850759]
[1729268102573,0.03254117,68420.0,68414.0,0.00219065]
[1729268102813,0.03254117,68419.0,68414.0,0.00219065]
[1729268103061,0.01445785,68421.0,68414.0,0.00219065]
[1729268103062,0.01084669,68418.0,68414.0,0.00219065]
[1729268103312,0.01084669,68417.0,68414.0,0.00219065]
[1729268103541,0.01084669,68416.0,68414.0,0.00219065]
[1729268103785,0.01084669,68415.0,68414.0,0.00219065]
[1729268104029,0.11524537,68415.0,68414.0,0.00219065]
[1729268104294,0.10439868,68415.0,68414.0,0.00219065]
[1729268104573,0.46026912,68415.0,68414.0,0.00219065]
[1729268104775,0.46026912,68415.0,68408.0,0.000829]
[1729268105017,0.2788,68415.0,68414.0,0.01389176]
[1729268105294,0.2788,68415.0,68408.0,0.000829]
[1729268105295,0.03250438,68415.0,68408.0,0.000829]
[1729268105497,0.001658,68421.0,68411.0,0.23239935]
[1729268105498,0.03250438,68414.0,68411.0,0.23239935]
[1729268105741,0.03250438,68413.0,68408.0,0.000829]
[1729268105976,0.01083479,68412.0,68408.0,0.000829]
[1729268106213,0.01083479,68412.0,68408.0,0.00777488]
[1729268106457,0.01083479,68411.0,68408.0,0.00777488]
[1729268106695,0.01083479,68410.0,68408.0,0.00777488]
[1729268106948,0.01083479,68409.0,68408.0,0.00777488]
[1729268107184,0.01444769,68420.0,68409.0,0.00858221]
[1729268107423,0.00730312,68419.0,68409.0,0.00858221]
[1729268107657,0.00730312,68418.0,68409.0,0.00858221]
[1729268107929,0.00730312,68417.0,68409.0,0.00858221]
[1729268108409,0.001658,68421.0,68409.0,0.00858221]
[1729268108655,0.001658,68421.0,68408.0,0.000829]
[1729268108656,0.01460632,68416.0,68408.0,0.000829]
[1729268108864,0.00730315,68416.0,68408.0,0.000829]
[1729268109092,0.00730317,68415.0,68408.0,0.000829]
[1729268109327,0.00730315,68416.0,68408.0,0.000829]
[1729268109328,0.00730317,68414.0,68408.0,0.000829]
[1729268109585,0.00730317,68413.0,68408.0,0.000829]
[1729268109809,0.00730317,68412.0,68408.0,0.00642814]
[1729268110028,0.073,68415.0,68409.0,0.15455829]
[1729268110248,0.06587062,68415.0,68409.0,0.15455829]
[1729268111222,0.00730315,68416.0,68409.0,0.15455829]
[1729268112649,0.07320315,68416.0,68409.0,0.15455829]
[1729268112892,0.07320315,68416.0,68415.0,0.00219101]
[1729268112893,1.02427849,68416.0,68415.0,0.00219101]
[1729268113136,1.02427849,68416.0,68415.0,0.22885016]
[1729268113137,0.95206227,68416.0,68415.0,0.22885016]
[1729268113401,0.51393837,68416.0,68415.0,0.4313449]
[1729268113634,0.51393837,68416.0,68415.0,0.42565016]
[1729268113875,0.43812391,68416.0,68415.0,0.42565016]
[1729268114105,1e-08,68416.0,68415.0,0.4313449]
[1729268115349,1e-08,68416.0,68415.0,0.00219101]
[1729268118465,1e-08,68416.0,68415.0,0.15617094]
[1729268119384,1e-08,68416.0,68415.0,0.23357094]
[1729268119630,1e-08,68416.0,68415.0,0.15115016]
[1729268120981,1e-08,68416.0,68415.0,0.15617094]
[1729268121207,0.001658,68419.0,68415.0,0.15617094]
[1729268121433,0.0817,68436.0,68416.0,0.15825045]
[1729268121655,0.26177091,68449.0,68421.0,0.002]
[1729268121656,0.0815,68444.0,68421.0,0.002]
[1729268121893,0.0815,68444.0,68416.0,0.15397993]
[1729268121894,0.19741953,68434.0,68422.0,0.15319809]
[1729268122175,0.0815,68444.0,68422.0,0.15319809]
[1729268122673,0.0815,68444.0,68425.0,0.21850759]
[1729268122906,0.0815,68444.0,68426.0,0.15319809]
[1729268123156,0.21850759,68442.0,68426.0,0.15319809]
[1729268123470,0.0815,68444.0,68432.0,0.00219056]
[1729268124315,0.0815,68444.0,68433.0,0.21850759]
[1729268125705,0.0815,68444.0,68432.0,0.00219056]
[1729268126656,0.0815,68444.0,68433.0,0.21850759]
[1729268127172,0.0815,68444.0,68432.0,0.00219056]
[1729268129393,0.15979478,68435.0,68432.0,0.00219056]
[1729268129610,0.01083563,68434.0,68432.0,0.00219056]
[1729268129894,0.2015,68439.0,68432.0,0.00219056]
[1729268129895,0.15979478,68433.0,68432.0,0.00219056]
[1729268130118,0.23809478,68433.0,68432.0,0.00219056]
[1729268130799,0.41585915,68433.0,68432.0,0.00219056]
[1729268131076,0.41585915,68433.0,68426.0,0.0494809]
[1729268131077,0.001,68427.0,68426.0,0.0494809]
[1729268131310,0.22815915,68427.0,68426.0,0.0494809]
[1729268131543,0.22815915,68427.0,68420.0,0.21850759]
[1729268131544,0.002,68423.0,68420.0,0.21850759]
[1729268131769,0.002,68419.0,68415.0,0.000829]
[1729268132013,0.002,68417.0,68415.0,0.000829]
[1729268132229,0.15977855,68416.0,68415.0,0.000829]
[1729268136172,0.14895915,68416.0,68415.0,0.000829]
[1729268136657,0.15975721,68416.0,68415.0,0.000829]
[1729268138508,0.23495721,68416.0,68415.0,0.000829]
[1729268139203,0.23695721,68416.0,68415.0,0.000829]
[1729268139445,0.23495721,68416.0,68415.0,0.000829]
[1729268139671,0.23695721,68416.0,68415.0,0.000829]
[1729268139898,0.25043328,68416.0,68415.0,0.000829]
[1729268140135,0.1829,68415.0,68414.0,0.000829]
[1729268140377,0.4935427,68415.0,68414.0,0.000829]
[1729268140596,0.45038211,68415.0,68414.0,0.000829]
[1729268141070,0.45038211,68415.0,68409.0,0.00219179]
[1729268141071,0.002,68410.0,68409.0,0.00219179]
[1729268141337,0.14895915,68410.0,68409.0,0.00219179]
[1729268141543,0.15975721,68410.0,68409.0,0.00219179]
[1729268141990,0.16175721,68410.0,68409.0,0.00219179]
[1729268142246,0.23705721,68410.0,68409.0,0.00219179]
[1729268142474,0.4323072,68410.0,68409.0,0.00219179]
[1729268142916,0.44955603,68410.0,68409.0,0.00219179]
[1729268143610,0.49262923,68410.0,68409.0,0.00219179]
[1729268144561,0.44937997,68410.0,68409.0,0.00219179]
[1729268145487,0.49245317,68410.0,68409.0,0.00219179]
[1729268145707,0.44937997,68410.0,68409.0,0.00219179]
[1729268146165,0.44932562,68410.0,68409.0,0.00219179]
[1729268146417,0.46008899,68410.0,68409.0,0.00219179]
[1729268146631,0.47731038,68410.0,68409.0,0.00219179]
[1729268147306,0.47531038,68410.0,68409.0,0.00219179]
[1729268147546,0.44463362,68410.0,68409.0,0.00219179]
[1729268147814,0.44462312,68410.0,68409.0,0.00219179]
[1729268148034,0.46182705,68410.0,68409.0,0.00219179]
[1729268148266,0.44462312,68410.0,68409.0,0.00219179]
[1729268148508,0.44662312,68410.0,68409.0,0.00219179]
[1729268148728,0.4492833,68410.0,68409.0,0.00219179]
[1729268150065,0.44928002,68410.0,68409.0,0.00219179]
[1729268154039,0.44928366,68410.0,68409.0,0.00219179]
[1729268154264,0.44928075,68410.0,68409.0,0.00302079]
[1729268156182,0.44928075,68410.0,68402.0,0.21850759]
[1729268156183,0.002,68408.0,68402.0,0.21850759]
[1729268156419,0.14895915,68406.0,68402.0,0.21850759]
[1729268156627,0.02419219,68405.0,68402.0,0.21850759]
[1729268156869,0.01720547,68409.0,68396.0,0.0490151]
[1729268156870,0.17315134,68404.0,68396.0,0.0490151]
[1729268157095,0.17315134,68403.0,68396.0,0.06873881]
[1729268157333,0.002,68401.0,68396.0,0.06873881]
[1729268157572,0.002,68398.0,68396.0,0.01972371]
[1729268157799,0.14895915,68397.0,68396.0,0.01972371]
[1729268158029,0.14895915,68397.0,68384.0,0.26758549]
[1729268158256,0.15972575,68397.0,68391.0,0.21850759]
[1729268158522,0.0107666,68396.0,68387.0,0.02091595]
[1729268158758,0.15972575,68395.0,68387.0,0.02091595]
[1729268158994,0.0107666,68394.0,68387.0,0.00083]
[1729268159244,0.15972575,68393.0,68387.0,0.00083]
[1729268159467,0.0107666,68392.0,68387.0,0.00083]
[1729268159714,0.15972575,68391.0,68387.0,0.00083]
[1729268159946,0.0414758,68390.0,68387.0,0.00083]
[1729268160183,0.19043495,68389.0,68387.0,0.00083]
[1729268160424,0.0414758,68388.0,68387.0,0.00083]
[1729268160697,0.19043495,68388.0,68387.0,0.00083]
[1729268161184,0.19050947,68388.0,68387.0,0.00083]
[1729268163434,0.19781755,68388.0,68387.0,0.00083]
[1729268163672,0.28921124,68388.0,68387.0,0.00083]
[1729268163920,0.28631995,68388.0,68387.0,0.00083]
[1729268164136,0.19781755,68388.0,68387.0,0.00526173]
[1729268164385,0.19050947,68388.0,68387.0,0.00083]
[1729268164631,0.03995108,68388.0,68387.0,0.00302239]
[1729268164878,0.01079526,68388.0,68387.0,0.20935358]
[1729268165335,0.01081162,68388.0,68387.0,0.18932239]
[1729268165579,0.01729351,68398.0,68387.0,0.18932239]
[1729268165800,0.01729351,68397.0,68388.0,0.0792]
[1729268166033,0.00730808,68406.0,68389.0,0.21850759]
[1729268166263,0.1662663,68405.0,68389.0,0.00291072]
[1729268166486,0.01730715,68404.0,68395.0,0.00219191]
[1729268166701,0.0756,68420.0,68395.0,0.00219191]
[1729268166702,0.00730576,68414.0,68395.0,0.00219191]
[1729268166964,0.16626875,68409.0,68395.0,0.00219191]
[1729268167201,0.0173096,68408.0,68395.0,0.00219191]
[1729268167440,0.0173096,68407.0,68395.0,0.00219191]
[1729268167663,0.14895915,68409.0,68395.0,0.00219191]
[1729268167913,0.01731079,68408.0,68395.0,0.02279451]
[1729268168162,0.14895915,68409.0,68395.0,0.02279451]
[1729268168388,0.01731056,68407.0,68397.0,0.21850759]
[1729268168620,0.14895915,68409.0,68397.0,0.21850759]
[1729268168866,0.14895915,68409.0,68395.0,0.00219191]
[1729268168867,0.01731211,68408.0,68395.0,0.00219191]
[1729268169080,0.01731211,68407.0,68397.0,0.21850759]
[1729268169566,0.14895915,68409.0,68397.0,0.21850759]
[1729268169793,0.01731717,68408.0,68397.0,0.21850759]
[1729268170024,0.01731717,68407.0,68397.0,0.21850759]
[1729268170239,0.01731858,68406.0,68395.0,0.00219191]
[1729268170457,0.14895915,68406.0,68397.0,0.21850759]
[1729268171701,0.01731277,68405.0,68397.0,0.21850759]
[1729268171942,0.14895915,68406.0,68397.0,0.21850759]
[1729268172166,0.01731025,68404.0,68397.0,0.21850759]
[1729268172400,0.14895915,68406.0,68397.0,0.21850759]
[1729268172850,0.01730597,68405.0,68395.0,0.00219191]
[1729268173066,0.14895915,68406.0,68395.0,0.00219191]
[1729268173304,0.01730119,68405.0,68398.0,0.21850759]
[1729268173535,0.00730558,68416.0,68395.0,0.02259749]
[1729268173762,0.16625959,68409.0,68395.0,0.02259749]
[1729268174011,0.01730044,68408.0,68397.0,0.21850759]
[1729268174243,0.01730044,68407.0,68397.0,0.21850759]
[1729268174485,0.01730044,68406.0,68397.0,0.21850759]
[1729268174715,0.14895915,68409.0,68397.0,0.21850759]
[1729268174716,0.01730044,68405.0,68397.0,0.21850759]
[1729268174950,0.14895915,68409.0,68397.0,0.21850759]
[1729268174951,0.01730171,68404.0,68397.0,0.21850759]
[1729268175178,0.01730171,68403.0,68397.0,0.21850759]
[1729268175405,0.14895915,68409.0,68395.0,0.00219191]
[1729268175625,0.0173032,68408.0,68395.0,0.00219191]
[1729268175949,0.01730262,68408.0,68395.0,0.02238212]
[1729268176172,0.01730014,68407.0,68397.0,0.21850759]
[1729268176412,0.01730014,68406.0,68397.0,0.21850759]
[1729268176641,0.001658,68410.0,68405.0,0.0778]
[1729268177100,0.001658,68410.0,68405.0,0.08321722]
[1729268177335,0.001658,68409.0,68405.0,0.08321722]
[1729268177565,0.01729887,68418.0,68408.0,0.0021915]
[1729268177795,0.21850759,68425.0,68409.0,0.33547637]
[1729268178012,0.01081061,68424.0,68410.0,0.0792]
[1729268178260,0.14895915,68432.0,68411.0,0.22392481]
[1729268178521,0.01080355,68431.0,68412.0,0.14895915]
[1729268178736,0.001658,68433.0,68412.0,0.14895915]
[1729268178737,0.01080355,68430.0,68413.0,0.0808]
[1729268178949,0.01080355,68429.0,68413.0,0.22975915]
[1729268179192,0.001658,68433.0,68413.0,0.22975915]
[1729268179646,0.01079903,68432.0,68413.0,0.22975915]
[1729268179857,0.01079903,68431.0,68418.0,0.21850759]
[1729268180067,0.001658,68433.0,68418.0,0.21850759]
[1729268180507,0.001658,68433.0,68418.0,0.26816849]
[1729268180745,0.001658,68433.0,68424.0,0.0021908]
[1729268181013,0.15975592,68432.0,68424.0,0.0021908]
[1729268181246,0.15975592,68432.0,68425.0,0.21850759]
[1729268181247,0.14895915,68432.0,68425.0,0.21850759]
[1729268181510,0.001658,68433.0,68425.0,0.21850759]
[1729268181739,0.15061715,68433.0,68425.0,0.21850759]
[1729268182010,0.001658,68433.0,68425.0,0.21850759]
[1729268182229,0.001658,68433.0,68426.0,0.0819]
[1729268183323,0.001658,68433.0,68427.0,0.00456438]
[1729268183598,0.001658,68433.0,68432.0,0.00219063]
[1729268184303,0.00125751,68433.0,68432.0,0.00675501]
[1729268184531,0.00125751,68433.0,68432.0,0.00219063]
[1729268186846,0.00125751,68433.0,68427.0,0.21850759]
[1729268187086,0.00125751,68433.0,68427.0,0.36746674]
[1729268187531,0.00125751,68433.0,68426.0,0.0819]
[1729268189096,0.00085702,68433.0,68426.0,0.0819]
[1729268189343,0.00085702,68433.0,68424.0,0.21850759]
[1729268189344,0.00045653,68433.0,68424.0,0.21850759]
[1729268189567,0.00045653,68433.0,68427.0,0.0038453]
[1729268190024,0.00045653,68433.0,68424.0,0.14895915]
[1729268191241,0.00045653,68433.0,68430.0,0.00219038]
[1729268192121,0.003658,68444.0,68430.0,0.00219038]
[1729268192348,0.21850759,68440.0,68430.0,0.08179038]
[1729268192577,0.002,68443.0,68430.0,0.08179038]
[1729268193032,0.001658,68444.0,68432.0,0.21850759]
[1729268193936,0.001658,68444.0,68433.0,0.14895915]
[1729268194148,0.04466866,68447.0,68433.0,0.14895915]
[1729268194392,0.002,68461.0,68442.0,0.2588]
[1729268194664,0.21850759,68473.0,68442.0,0.2588]
[1729268194665,0.21850759,68459.0,68443.0,0.14895915]
[1729268195114,0.002,68454.0,68443.0,0.14895915]
[1729268195338,0.0495733,68459.0,68444.0,0.21850759]
[1729268195801,0.00166,68465.0,68444.0,0.21850759]
[1729268195802,0.002,68461.0,68449.0,0.00218955]
[1729268196033,0.00166,68465.0,68449.0,0.00218955]
[1729268196034,0.003662,68462.0,68449.0,0.00218955]
[1729268196281,0.00639265,68460.0,68449.0,0.00218955]
[1729268196515,0.002,68458.0,68449.0,0.00218955]
[1729268196731,0.00638749,68459.0,68451.0,0.21850759]
[1729268196951,0.001662,68462.0,68449.0,0.00218955]
[1729268197196,0.001662,68462.0,68451.0,0.21850759]
[1729268197418,0.00639781,68461.0,68451.0,0.21850759]
[1729268197880,0.001662,68462.0,68451.0,0.21850759]
[1729268198111,0.001662,68462.0,68451.0,0.14895915]
[1729268198560,0.001662,68462.0,68452.0,0.21850759]
[1729268198816,0.001662,68462.0,68451.0,0.14895915]
[1729268199013,0.001662,68462.0,68452.0,0.21850759]
[1729268199238,0.002,68461.0,68452.0,0.21850759]
[1729268199454,0.003662,68462.0,68449.0,0.00218955]
[1729268199704,0.003662,68462.0,68451.0,0.21850759]
[1729268200142,0.003662,68462.0,68449.0,0.02215596]
[1729268200359,0.002,68450.0,68449.0,0.02215596]
[1729268200584,0.15095915,68450.0,68449.0,0.01996641]
[1729268200825,0.15095915,68450.0,68433.0,0.21850759]
[1729268200826,0.0763,68449.0,68433.0,0.21850759]
[1729268201058,0.002,68445.0,68444.0,0.21850759]
[1729268201297,0.002,68445.0,68433.0,0.21850759]
[1729268201298,0.002,68434.0,68433.0,0.23875145]
[1729268201800,0.002,68434.0,68433.0,0.02024386]
[1729268202252,0.002,68434.0,68424.0,0.000829]
[1729268202253,0.002,68433.0,68426.0,0.21850759]
[1729268202475,0.1821,68441.0,68426.0,0.21850759]
[1729268202476,0.002,68427.0,68426.0,0.21850759]
[1729268202919,0.002,68425.0,68424.0,0.000829]
[1729268203144,0.002,68425.0,68424.0,0.02099251]
[1729268203367,0.01157964,68425.0,68424.0,0.000829]
[1729268203605,0.002,68425.0,68424.0,0.000829]
[1729268203845,0.01157394,68425.0,68424.0,0.000829]
[1729268204088,0.00957394,68425.0,68424.0,0.000829]
[1729268204324,0.19886095,68440.0,68424.0,0.0204657]
[1729268204325,0.002,68427.0,68424.0,0.0204657]
[1729268204560,0.00957394,68425.0,68424.0,0.000829]
[1729268204796,0.002,68425.0,68424.0,0.000829]
[1729268205020,0.01157394,68425.0,68424.0,0.000829]
[1729268205280,0.002,68425.0,68424.0,0.000829]
[1729268205475,0.02238139,68425.0,68424.0,0.000829]
[1729268206198,0.02038139,68425.0,68424.0,0.000829]
[1729268206429,0.02238139,68425.0,68424.0,0.000829]
[1729268206696,0.17134054,68425.0,68424.0,0.000829]
[1729268207626,0.02038139,68425.0,68424.0,0.000829]
[1729268207893,0.01730284,68432.0,68424.0,0.000829]
[1729268208126,0.002,68434.0,68424.0,0.000829]
[1729268208816,0.01082148,68433.0,68424.0,0.000829]
[1729268209049,0.002,68434.0,68424.0,0.000829]
[1729268209050,0.01082133,68432.0,68424.0,0.000829]
[1729268209304,0.0519018,68440.0,68428.0,0.21850759]
[1729268209530,0.22933122,68439.0,68425.0,0.14895915]
[1729268209757,0.01082363,68439.0,68425.0,0.14895915]
[1729268210008,0.0519018,68440.0,68426.0,0.21850759]
[1729268210231,0.002,68440.0,68426.0,0.36746674]
[1729268210464,0.01082398,68439.0,68426.0,0.36746674]
[1729268210698,0.01082398,68438.0,68426.0,0.36746674]
[1729268210927,0.01082398,68437.0,68426.0,0.36746674]
[1729268211155,0.002,68433.0,68424.0,0.000829]
[1729268211392,0.002,68426.0,68424.0,0.000829]
[1729268211620,0.002,68428.0,68425.0,0.21850759]
[1729268211849,0.0796,68435.0,68424.0,0.000829]
[1729268211850,0.002,68425.0,68424.0,0.000829]
[1729268212080,0.01282396,68425.0,68424.0,0.000829]
[1729268212548,0.04366667,68425.0,68424.0,0.000829]
[1729268213716,0.04366193,68425.0,68424.0,0.000829]
[1729268213946,0.04366185,68425.0,68424.0,0.000829]
[1729268214163,0.06096584,68425.0,68424.0,0.000829]
[1729268214445,0.04544281,68425.0,68424.0,0.000829]
[1729268214663,0.03012795,68425.0,68424.0,0.000829]
[1729268214882,0.02978595,68425.0,68424.0,0.000829]
[1729268215106,0.01229009,68425.0,68424.0,0.000829]
[1729268215533,0.15261715,68425.0,68424.0,0.02096386]
[1729268215760,0.15261715,68425.0,68404.0,0.21850759]
[1729268215761,0.002,68420.0,68411.0,0.21850759]
[1729268215983,0.15061715,68425.0,68411.0,0.21850759]
[1729268215984,0.15061715,68425.0,68419.0,0.21850759]
[1729268216210,0.002,68418.0,68411.0,0.21850759]
[1729268216448,0.002,68415.0,68411.0,0.21850759]
[1729268216657,0.15061715,68425.0,68411.0,0.14486844]
[1729268216658,0.002,68418.0,68411.0,0.14486844]
[1729268216912,0.002,68418.0,68404.0,0.21850759]
[1729268217123,0.002,68418.0,68411.0,0.02052899]
[1729268217335,0.002,68419.0,68404.0,0.21850759]
[1729268218029,0.002,68418.0,68404.0,0.23845544]
[1729268218261,0.21850759,68424.0,68404.0,0.23845544]
[1729268218262,0.002,68420.0,68404.0,0.16499275]
[1729268218471,0.002,68418.0,68404.0,0.16499275]
[1729268219983,0.002,68415.0,68404.0,0.16499275]
[1729268220206,0.002,68418.0,68404.0,0.16499275]
[1729268220468,0.0515041,68425.0,68411.0,0.21850759]
[1729268220743,0.0515041,68425.0,68405.0,0.14895915]
[1729268220744,0.21850759,68423.0,68405.0,0.14895915]
[1729268220964,0.21850759,68434.0,68412.0,0.36246674]
[1729268221198,0.26751359,68434.0,68413.0,0.29850759]
[1729268221419,0.21850759,68433.0,68414.0,0.14895915]
[1729268222324,0.22050759,68433.0,68414.0,0.14895915]
[1729268222557,0.21850759,68433.0,68414.0,0.14895915]
[1729268223479,0.049006,68434.0,68421.0,0.21850759]
[1729268223692,0.049006,68434.0,68422.0,0.14895915]
[1729268223927,0.002,68440.0,68422.0,0.14895915]
[1729268224141,0.002,68440.0,68423.0,0.21850759]
[1729268224371,0.002,68440.0,68424.0,0.14895915]
[1729268224637,0.002,68434.0,68424.0,0.14895915]
[1729268224853,0.0491127,68442.0,68430.0,0.21850759]
[1729268225084,0.26762029,68442.0,68424.0,0.14895915]
[1729268225312,0.002,68445.0,68424.0,0.14895915]
[1729268225519,0.0493997,68442.0,68424.0,0.14895915]
[1729268225761,0.21850759,68443.0,68424.0,0.14895915]
[1729268225762,0.002,68438.0,68424.0,0.14895915]
[1729268225986,0.002,68436.0,68424.0,0.14895915]